bitfinex/quotes_SOLUSD_20241107
["timestamp","ask_amount","ask_price","bid_price","bid_amount"]
[1730971254136,7.86422058,187.84,187.83,0.5797983]
[1730971255242,5.3227,187.88,187.83,0.5797983]
[1730971255411,7.86422058,187.85,187.83,0.5797983]
[1730971255924,5.3227,187.88,187.83,0.5797983]
[1730971256313,7.86422058,187.85,187.83,0.5797983]
[1730971258114,7.86422058,187.85,187.83,19.2135983]
[1730971258313,7.86422058,187.86,187.83,19.2135983]
[1730971259218,7.86422058,187.85,187.83,19.2135983]
[1730971261033,7.86422058,187.85,187.83,13.8896983]
[1730971262515,7.86422058,187.84,187.83,13.8896983]
[1730971263715,7.86422058,187.85,187.83,13.8896983]
[1730971264525,7.86422058,187.84,187.83,0.5797983]
[1730971266435,13.18782058,187.84,187.83,0.5797983]
[1730971269225,13.31331058,187.84,187.83,0.5797983]
[1730971269732,13.31331058,187.84,187.73,15.3267]
[1730971269733,24.002374,187.83,187.73,15.3267]
[1730971269952,7.86422058,187.76,187.73,10.0]
[1730971270741,5.3242,187.82,187.73,15.3265]
[1730971270949,7.86422058,187.77,187.73,15.3265]
[1730971271425,7.86422058,187.76,187.73,15.3265]
[1730971274551,7.86422058,187.75,187.73,15.3265]
[1730971274739,7.86422058,187.75,187.73,10.0]
[1730971274921,7.86422058,187.76,187.73,15.3266]
[1730971275342,7.86422058,187.75,187.73,10.0]
[1730971275530,31.45688232,187.8,187.73,10.0]
[1730971275531,7.86422058,187.74,187.73,10.0]
[1730971277944,7.86422058,187.76,187.73,15.3267]
[1730971281462,7.86422058,187.76,187.73,28.6436]
[1730971281759,6.0068,187.82,187.73,28.6436]
[1730971281760,5.3242,187.82,187.73,28.6436]
[1730971281929,7.86422058,187.77,187.73,28.6436]
[1730971282438,7.86422058,187.76,187.73,28.6436]
[1730971282639,7.86422058,187.75,187.73,28.6436]
[1730971283736,7.86422058,187.76,187.73,28.6436]
[1730971286051,7.86422058,187.74,187.73,10.0]
[1730971286253,7.86422058,187.75,187.73,10.0]
[1730971288464,5.325,187.79,187.73,15.3267]
[1730971288667,7.86422058,187.74,187.73,15.3267]
[1730971290159,7.86422058,187.74,187.73,10.0]
[1730971292349,15.9657,187.77,187.73,10.0]
[1730971292556,7.86422058,187.74,187.73,10.0]
[1730971295759,15.9657,187.77,187.73,10.0]
[1730971295949,7.86422058,187.74,187.73,10.0]
[1730971296641,5.3257,187.77,187.73,10.0]
[1730971296843,7.86422058,187.74,187.73,10.0]
[1730971303466,5.45049,187.79,187.73,10.0]
[1730971303648,7.86422058,187.74,187.73,10.0]
[1730971303848,5.45049,187.79,187.73,10.0]
[1730971304150,7.86422058,187.74,187.73,10.0]
[1730971304650,5.3245,187.81,187.73,15.3267]
[1730971304844,7.86422058,187.77,187.73,15.3267]
[1730971305657,7.86422058,187.76,187.73,23.3169]
[1730971306554,7.86422058,187.77,187.73,23.3169]
[1730971306873,7.86422058,187.79,187.73,36.50782058]
[1730971307574,7.86422058,187.79,187.74,7.86422058]
[1730971307778,7.86422058,187.79,187.73,36.50782058]
[1730971309556,6.60471778,187.84,187.75,22.94672058]
[1730971309760,7.86422058,187.81,187.75,22.94672058]
[1730971310177,11.92841778,187.84,187.76,7.86422058]
[1730971310361,6.60471778,187.84,187.76,7.86422058]
[1730971310682,7.86422058,187.82,187.77,18.6397]
[1730971311771,7.86422058,187.83,187.77,21.17832058]
[1730971312192,5.3237,187.84,187.77,21.17832058]
[1730971312389,7.86422058,187.83,187.77,21.17832058]
[1730971312891,7.86422058,187.83,187.77,26.50392058]
[1730971318190,7.86422058,187.83,187.78,7.86422058]
[1730971318599,7.86422058,187.83,187.78,13.18942058]
[1730971319099,7.86422058,187.83,187.78,5.3252]
[1730971320203,5.52825285,187.88,187.77,21.17832058]
[1730971320204,7.86422058,187.81,187.77,13.3141]
[1730971320573,5.44829,187.87,187.77,13.3141]
[1730971320779,7.86422058,187.81,187.77,13.3141]
[1730971321495,7.86422058,187.81,187.77,18.6397]
[1730971322095,7.86422058,187.8,187.75,5.326]
[1730971322305,7.86422058,187.78,187.74,5.3264]
[1730971322702,7.86422058,187.78,187.73,23.3164]
[1730971323575,7.86422058,187.79,187.73,31.18062058]
[1730971324214,7.86422058,187.79,187.74,7.86422058]
[1730971325196,7.86422058,187.8,187.74,13.19052058]
[1730971325398,7.86422058,187.82,187.76,7.86422058]
[1730971325603,7.86422058,187.83,187.74,18.6425]
[1730971325775,7.86422058,187.84,187.78,7.86422058]
[1730971326397,5.3233,187.85,187.78,7.86422058]
[1730971326600,5.3233,187.85,187.79,5.325]
[1730971326601,7.86422058,187.84,187.79,5.325]
[1730971328304,13.18792058,187.84,187.79,5.325]
[1730971331411,5.3233,187.85,187.79,5.325]
[1730971331597,7.86422058,187.83,187.79,5.325]
[1730971331792,7.86422058,187.84,187.79,5.325]
[1730971333918,13.18752058,187.85,187.79,7.86422058]
[1730971335208,13.18752058,187.85,187.79,13.18902058]
[1730971337913,13.18752058,187.85,187.79,26.50172058]
[1730971338235,7.86422058,187.85,187.79,26.50172058]
[1730971338396,7.86422058,187.85,187.8,7.86422058]
[1730971339217,7.86422058,187.85,187.8,13.18892058]
[1730971340208,13.18762058,187.85,187.8,5.3247]
[1730971341703,5.3234,187.85,187.8,7.86422058]
[1730971341895,5.3234,187.85,187.81,7.86422058]
[1730971342521,5.3234,187.85,187.8,7.86422058]
[1730971342832,5.3234,187.85,187.8,13.18882058]
[1730971343011,14.43135227,187.86,187.8,13.18882058]
[1730971344409,7.86422058,187.86,187.81,7.86422058]
[1730971344617,5.52424924,187.89,187.83,7.86422058]
[1730971344828,18.71086982,187.89,187.83,7.86422058]
[1730971345433,13.18662058,187.89,187.83,7.86422058]
[1730971345934,5.3224,187.89,187.84,7.86422058]
[1730971346607,23.71386186,187.9,187.8,18.6366]
[1730971346608,15.84964128,187.9,187.86,7.86422058]
[1730971346808,15.84964128,187.9,187.87,7.86422058]
[1730971347735,15.84964128,187.9,187.86,13.18722058]
[1730971350235,15.84964128,187.9,187.86,7.86422058]
[1730971351331,15.84964128,187.9,187.84,18.6322]
[1730971351534,15.84964128,187.9,187.86,7.86422058]
[1730971352430,21.17154128,187.9,187.85,5.3231]
[1730971352632,21.17154128,187.9,187.85,13.18732058]
[1730971352837,21.17154128,187.9,187.85,5.3231]
[1730971353041,21.17154128,187.9,187.85,13.18732058]
[1730971353414,15.84964128,187.9,187.85,13.18732058]
[1730971354117,7.86422058,187.88,187.82,7.86422058]
[1730971354439,7.86422058,187.87,187.81,7.86422058]
[1730971354739,7.86422058,187.87,187.82,5.3242]
[1730971355032,15.84964128,187.9,187.82,13.18842058]
[1730971355232,15.84964128,187.9,187.86,7.86422058]
[1730971356840,15.84964128,187.9,187.86,13.18722058]
[1730971357017,15.84964128,187.9,187.87,7.86422058]
[1730971359338,15.84964128,187.9,187.86,26.49492058]
[1730971359548,15.84964128,187.9,187.86,18.6307]
[1730971360324,7.86422058,187.89,187.83,13.18782058]
[1730971360837,21.17174128,187.9,187.83,13.18782058]
[1730971360838,7.86422058,187.88,187.83,13.18782058]
[1730971361027,7.86422058,187.88,187.83,5.3236]
[1730971361229,7.86422058,187.88,187.83,13.18782058]
[1730971361744,13.18672058,187.88,187.83,5.3236]
[1730971362344,7.86422058,187.86,187.82,13.3099]
[1730971362644,7.86422058,187.87,187.82,13.3099]
[1730971363143,13.18672058,187.88,187.82,26.49832058]
[1730971365845,13.18672058,187.88,187.78,15.0436]
[1730971366140,13.18672058,187.88,187.82,7.86422058]
[1730971366847,13.18642058,187.89,187.83,7.86422058]
[1730971367228,7.86422058,187.88,187.82,7.86422058]
[1730971367441,5.3222,187.89,187.78,33.6823]
[1730971367442,7.86422058,187.87,187.81,7.86422058]
[1730971368536,7.86422058,187.87,187.82,5.3242]
[1730971370040,13.18682058,187.88,187.82,7.86422058]
[1730971371324,13.18682058,187.88,187.83,5.3239]
[1730971371549,5.3226,187.88,187.83,13.18812058]
[1730971372162,7.86422058,187.89,187.83,13.18812058]
[1730971372452,13.18652058,187.89,187.83,13.18812058]
[1730971374253,0.12549,187.93,187.83,13.18812058]
[1730971374459,7.86422058,187.89,187.83,13.18812058]
[1730971375650,13.18662058,187.89,187.83,13.18812058]
[1730971378758,7.86422058,187.88,187.82,7.86422058]
[1730971379054,13.18662058,187.89,187.83,7.86422058]
[1730971379439,7.86422058,187.88,187.82,7.86422058]
[1730971379943,7.86422058,187.88,187.83,5.3239]
[1730971382156,7.86422058,187.88,187.82,21.17462058]
[1730971382458,7.86422058,187.87,187.82,13.3104]
[1730971383060,13.18692058,187.88,187.82,21.17462058]
[1730971383462,13.18692058,187.88,187.82,26.49882058]
[1730971383964,5.3216,187.91,187.82,26.49882058]
[1730971384142,7.86422058,187.89,187.83,7.86422058]
[1730971384752,7.86422058,187.89,187.82,26.49882058]
[1730971384955,7.86422058,187.89,187.83,7.86422058]
[1730971385140,7.86422058,187.89,187.83,13.18792058]
[1730971385352,13.18652058,187.89,187.83,5.3237]
[1730971388162,13.18652058,187.89,187.82,7.86422058]
[1730971389348,13.18652058,187.89,187.83,5.3239]
[1730971391052,13.18652058,187.89,187.83,7.86422058]
[1730971393365,13.18652058,187.89,187.83,13.18812058]
[1730971393546,13.18652058,187.89,187.83,5.3239]
[1730971398363,7.86422058,187.88,187.83,5.3239]
[1730971398962,7.86422058,187.85,187.79,5.325]
[1730971399167,7.86422058,187.84,187.79,5.325]
[1730971399565,7.86422058,187.82,187.77,13.3136]
[1730971399762,7.86422058,187.82,187.77,18.6392]
[1730971400076,23.902374,187.86,187.77,18.6392]
[1730971400256,7.86422058,187.82,187.77,18.6392]
[1730971400451,5.3233,187.85,187.77,18.6392]
[1730971400672,7.86422058,187.82,187.77,18.6392]
[1730971402984,13.18862058,187.82,187.77,13.3136]
[1730971403162,7.86422058,187.81,187.77,13.3136]
[1730971403769,7.86422058,187.81,187.75,7.86422058]
[1730971404076,20.8405,187.84,187.76,7.86422058]
[1730971404272,7.86422058,187.82,187.76,7.86422058]
[1730971404459,7.86422058,187.81,187.75,21.17972058]
[1730971404961,13.18902058,187.81,187.75,21.17972058]
[1730971405361,7.86422058,187.8,187.75,13.3155]
[1730971408679,7.86422058,187.8,187.73,6.246]
[1730971408680,5.325,187.79,187.73,11.5727]
[1730971408977,13.18922058,187.79,187.73,13.19092058]
[1730971409580,7.86422058,187.8,187.74,7.86422058]
[1730971410463,13.18902058,187.8,187.74,13.19052058]
[1730971412766,7.86422058,187.79,187.73,13.3169]
[1730971412962,7.86422058,187.79,187.73,21.18112058]
[1730971413986,13.18932058,187.79,187.73,26.50782058]
[1730971415877,23.776884,187.83,187.76,7.86422058]
[1730971416071,7.86422058,187.81,187.76,7.86422058]
[1730971416270,5.3239,187.83,187.75,7.86422058]
[1730971416484,7.86422058,187.81,187.75,7.86422058]
[1730971416877,7.86422058,187.82,187.76,7.86422058]
[1730971417466,7.86422058,187.82,187.77,7.86422058]
[1730971417963,20.8402,187.84,187.78,13.18952058]
[1730971418171,7.86422058,187.83,187.78,13.18952058]
[1730971418594,7.86422058,187.83,187.78,5.3253]
[1730971418967,7.86422058,187.83,187.78,7.86422058]
[1730971419568,5.3236,187.84,187.78,7.86422058]
[1730971419768,7.86422058,187.83,187.78,7.86422058]
[1730971420590,13.18812058,187.83,187.78,7.86422058]
[1730971421490,5.3236,187.85,187.8,7.86422058]
[1730971421669,13.18782058,187.85,187.79,7.86422058]
[1730971422772,23.776884,187.87,187.8,7.86422058]
[1730971422984,7.86422058,187.85,187.8,7.86422058]
[1730971423166,23.776884,187.87,187.81,7.86422058]
[1730971423367,7.86422058,187.86,187.81,7.86422058]
[1730971424292,5.3225,187.88,187.82,7.86422058]
[1730971424481,5.3225,187.88,187.83,7.86422058]
[1730971424683,13.18672058,187.88,187.83,7.86422058]
[1730971424880,5.3225,187.88,187.83,7.86422058]
[1730971425290,7.86422058,187.87,187.81,21.17522058]
[1730971425591,7.86422058,187.87,187.81,26.49972058]
[1730971426701,23.902374,187.9,187.81,26.49972058]
[1730971426885,7.86422058,187.87,187.82,7.86422058]
[1730971427081,7.86422058,187.87,187.81,18.6355]
[1730971427280,7.86422058,187.87,187.82,7.86422058]
[1730971427683,5.3228,187.87,187.82,7.86422058]
[1730971428376,13.18702058,187.87,187.82,7.86422058]
[1730971429990,13.18702058,187.87,187.78,20.0]
[1730971430176,13.18702058,187.87,187.82,7.86422058]
[1730971430507,7.86422058,187.88,187.82,7.86422058]
[1730971431284,7.86422058,187.87,187.82,7.86422058]
[1730971431684,7.86422058,187.86,187.8,7.86422058]
[1730971431995,13.18742058,187.86,187.8,13.18892058]
[1730971432402,13.18742058,187.86,187.8,7.86422058]
[1730971434775,7.86422058,187.85,187.79,13.18922058]
[1730971434980,7.86422058,187.86,187.8,7.86422058]
[1730971436880,5.3232,187.86,187.8,13.18892058]
[1730971437209,13.18742058,187.86,187.8,13.18892058]
[1730971437410,5.3222,187.89,187.82,7.86422058]
[1730971437615,7.86422058,187.87,187.82,7.86422058]
[1730971438209,5.3222,187.89,187.83,7.86422058]
[1730971438411,7.86422058,187.88,187.82,7.86422058]
[1730971438584,7.86422058,187.88,187.8,18.6367]
[1730971438785,7.86422058,187.86,187.8,26.50092058]
[1730971439217,7.86422058,187.86,187.8,18.6367]
[1730971439931,13.18752058,187.86,187.8,26.50092058]
[1730971440303,13.3043,187.91,187.81,7.86422058]
[1730971440504,5.3219,187.9,187.83,7.86422058]
[1730971440731,5.3211,187.93,187.85,7.86422058]
[1730971440930,7.86422058,187.92,187.86,7.86422058]
[1730971441630,13.18472058,187.95,187.89,7.86422058]
[1730971442014,7.86422058,187.93,187.87,13.307]
[1730971442214,7.86422058,187.92,187.87,13.307]
[1730971444457,7.86422058,187.91,187.85,7.86422058]
[1730971444640,5.3213,187.93,187.83,18.6338]
[1730971444828,13.18552058,187.93,187.87,7.86422058]
[1730971446348,5.3213,187.93,187.87,7.86422058]
[1730971446552,7.86422058,187.93,187.87,7.86422058]
[1730971447626,7.86422058,187.95,187.89,7.86422058]
[1730971448036,7.86422058,187.96,187.9,7.86422058]
[1730971448634,7.86422058,187.96,187.91,7.86422058]
[1730971448838,7.86422058,187.97,187.91,7.86422058]
[1730971449560,7.86422058,187.96,187.9,7.86422058]
[1730971450046,13.18462058,187.96,187.9,7.86422058]
[1730971450354,5.3204,187.96,187.91,7.86422058]
[1730971450647,16.4827,187.99,187.89,18.6278]
[1730971450648,7.86422058,187.99,187.93,7.86422058]
[1730971451230,7.86422058,188.0,187.94,7.86422058]
[1730971451836,13.18302058,188.01,187.95,7.86422058]
[1730971452153,20.81083253,188.03,187.92,0.12549]
[1730971452450,5.3171,188.07,187.99,7.86422058]
[1730971452656,5.3171,188.07,187.94,6.1064]
[1730971452657,5.3171,188.07,188.02,7.86422058]
[1730971452835,5.3171,188.07,187.95,36.0164]
[1730971452836,13.18122058,188.08,188.03,7.86422058]
[1730971453035,5.317,188.08,188.03,7.86422058]
[1730971453238,13.18122058,188.08,188.02,7.86422058]
[1730971453654,5.317,188.08,188.01,7.86422058]
[1730971453845,13.18122058,188.08,188.02,7.86422058]
[1730971455130,7.86422058,188.04,187.97,20.0]
[1730971455439,7.86422058,188.04,187.98,7.86422058]
[1730971455634,7.86422058,188.05,188.0,7.86422058]
[1730971456456,7.86422058,188.07,188.01,7.86422058]
[1730971457259,7.86422058,188.07,188.01,13.18302058]
[1730971457437,5.317,188.08,188.01,13.18302058]
[1730971457637,7.86422058,188.07,188.02,7.86422058]
[1730971458558,5.44119,188.12,188.02,7.86422058]
[1730971458737,7.86422058,188.07,188.02,13.18272058]
[1730971459054,5.44119,188.12,188.03,7.86422058]
[1730971459055,5.3157,188.12,188.03,7.86422058]
[1730971459234,7.86422058,188.09,188.03,7.86422058]
[1730971459437,5.3157,188.12,188.04,7.86422058]
[1730971459966,7.86422058,188.11,188.05,7.86422058]
[1730971460557,13.17992058,188.12,188.06,7.86422058]
[1730971461838,7.86422058,188.11,188.06,5.3173]
[1730971462032,7.86422058,188.11,188.05,13.2943]
[1730971462033,7.86422058,188.1,188.03,16.0215]
[1730971462262,5.3157,188.12,188.03,16.0215]
[1730971462560,7.86422058,188.08,188.03,23.88572058]
[1730971462743,7.86422058,188.09,188.03,23.88572058]
[1730971465458,13.18082058,188.09,188.03,23.88572058]
[1730971466759,7.86422058,188.1,188.04,7.86422058]
[1730971466960,7.86422058,188.09,188.03,23.88572058]
[1730971467341,23.902374,188.15,188.03,29.20382058]
[1730971467659,7.86422058,188.09,188.03,29.20382058]
[1730971467844,7.86422058,188.09,188.03,23.88572058]
[1730971468759,13.18102058,188.09,188.03,23.88572058]
[1730971469659,7.86422058,188.08,188.03,16.0215]
[1730971469854,7.86422058,188.08,188.02,14.40252058]
[1730971470162,7.86422058,188.07,188.01,7.86422058]
[1730971470456,7.86422058,188.06,188.0,7.86422058]
[1730971470837,13.18172058,188.06,188.0,7.86422058]
[1730971471040,7.86422058,188.05,187.99,23.61552058]
[1730971472068,7.86422058,188.04,187.97,21.16402058]
[1730971472468,7.86422058,188.03,187.97,21.16402058]
[1730971472764,7.86422058,188.01,187.95,28.67642058]
[1730971473658,7.86422058,188.01,187.95,23.35592058]
[1730971474365,7.86422058,188.01,187.95,7.86422058]
[1730971475044,13.18322058,188.01,187.95,7.86422058]
[1730971475380,5.319,188.01,187.96,7.86422058]
[1730971475868,13.18322058,188.01,187.95,7.86422058]
[1730971479169,13.18322058,188.01,187.94,13.18502058]
[1730971479368,13.18322058,188.01,187.94,7.86422058]
[1730971479670,7.86422058,188.0,187.94,7.86422058]
[1730971479876,7.86422058,187.99,187.93,6.0169]
[1730971480168,7.86422058,187.98,187.92,20.0]
[1730971480553,5.319,188.01,187.93,7.86422058]
[1730971480765,7.86422058,187.99,187.93,7.86422058]
[1730971480968,7.86422058,187.97,187.87,13.3069]
[1730971481166,7.86422058,187.93,187.87,13.3069]
[1730971481382,7.86422058,187.92,187.87,13.3069]
[1730971481667,0.12549,187.99,187.87,13.3069]
[1730971481668,13.18552058,187.93,187.87,13.3069]
[1730971482053,13.18552058,187.93,187.87,21.17112058]
[1730971482254,7.86422058,187.94,187.88,7.86422058]
[1730971482869,7.86422058,187.96,187.89,7.86422058]
[1730971483371,7.86422058,187.97,187.91,7.86422058]
[1730971483672,7.86422058,187.96,187.9,5.3218]
[1730971483860,13.2971,188.01,187.9,5.3218]
[1730971484065,7.86422058,187.97,187.91,7.86422058]
[1730971484786,5.3185,188.02,187.91,7.86422058]
[1730971485075,7.86422058,187.97,187.91,7.86422058]
[1730971485285,7.86422058,187.97,187.91,13.18582058]
[1730971486363,7.86422058,187.96,187.9,21.16912058]
[1730971486968,13.18422058,187.97,187.91,7.86422058]
[1730971488477,13.18422058,187.97,187.91,13.18582058]
[1730971490072,27.31912434,188.03,187.91,13.18582058]
[1730971490285,7.86422058,187.97,187.91,13.18582058]
[1730971491450,13.18432058,187.97,187.91,13.18582058]
[1730971491655,13.18432058,187.97,187.92,7.86422058]
[1730971491656,5.3201,187.97,187.92,7.86422058]
[1730971492262,5.3185,188.02,187.94,7.86422058]
[1730971492464,7.86422058,188.0,187.94,7.86422058]
[1730971492760,7.86422058,188.01,187.95,7.86422058]
[1730971493457,15.2813,188.03,187.95,7.86422058]
[1730971493681,7.86422058,188.01,187.95,13.18462058]
[1730971494362,7.86422058,188.02,187.96,7.86422058]
[1730971494871,13.18282058,188.02,187.96,7.86422058]
[1730971495300,7.86422058,188.01,187.95,13.18462058]
[1730971495575,7.86422058,188.02,187.96,7.86422058]
[1730971496373,7.86422058,188.01,187.95,26.48602058]
[1730971498373,13.18302058,188.01,187.95,26.48602058]
[1730971498583,7.86422058,188.01,187.95,26.48602058]
[1730971499265,7.86422058,188.0,187.95,18.6218]
[1730971501082,13.18312058,188.01,187.95,26.48602058]
[1730971502577,13.18312058,188.01,187.94,7.86422058]
[1730971503062,7.86422058,188.0,187.94,7.86422058]
[1730971503384,7.86422058,187.98,187.92,27.86422058]
[1730971503587,7.86422058,187.98,187.92,7.86422058]
[1730971503795,7.86422058,187.99,187.93,7.86422058]
[1730971504490,7.86422058,187.99,187.93,13.18522058]
[1730971504891,13.18392058,187.98,187.91,18.6258]
[1730971505064,7.86422058,187.97,187.91,26.49002058]
[1730971507787,15.3764,188.01,187.91,26.49002058]
[1730971507788,5.3194,188.0,187.92,27.86422058]
[1730971507971,5.3194,188.0,187.93,7.86422058]
[1730971508173,7.86422058,187.99,187.93,7.86422058]
[1730971508380,15.3764,188.01,187.95,7.86422058]
[1730971508587,7.86422058,188.01,187.95,7.86422058]
[1730971508790,13.18302058,188.02,187.95,7.86422058]
[1730971509092,7.86422058,188.01,187.93,0.12549]
[1730971509400,7.86422058,188.0,187.94,7.86422058]
[1730971509895,21.5885,188.06,187.95,13.18472058]
[1730971509896,13.18302058,188.01,187.95,13.18472058]
[1730971511699,7.86422058,188.01,187.95,26.48612058]
[1730971512271,5.3177,188.05,187.99,7.86422058]
[1730971512473,5.3168,188.08,188.0,7.86422058]
[1730971512690,7.86422058,188.06,188.0,7.86422058]
[1730971513599,7.86422058,188.06,188.0,13.18312058]
[1730971513780,13.18162058,188.06,188.0,13.18312058]
[1730971514901,7.86422058,188.05,187.99,21.16262058]
[1730971515195,13.18162058,188.06,188.0,7.86422058]
[1730971515572,5.3174,188.06,188.0,7.86422058]
[1730971515779,13.18162058,188.06,188.0,7.86422058]
[1730971516178,29.29620643,188.11,188.01,13.18302058]
[1730971516382,7.86422058,188.07,188.01,26.48012058]
[1730971517681,7.86422058,188.06,188.01,18.6159]
[1730971517877,7.86422058,188.05,187.98,43.776884]
[1730971518076,7.86422058,188.04,187.98,51.64110458]
[1730971518296,7.86422058,188.02,187.97,13.2995]
[1730971518698,7.86422058,188.01,187.97,13.2995]
[1730971519694,13.2922,188.08,187.97,13.2995]
[1730971519900,7.86422058,188.0,187.94,13.18482058]
[1730971520703,7.86422058,187.99,187.94,5.3206]
[1730971521801,7.86422058,187.99,187.94,18.6227]
[1730971522118,7.86422058,188.0,187.94,26.48692058]
[1730971524608,21.6136,188.04,187.96,7.86422058]
[1730971524804,7.86422058,188.02,187.96,7.86422058]
[1730971525299,16.2954,188.04,187.96,7.86422058]
[1730971525503,7.86422058,188.04,187.98,7.86422058]
[1730971525680,21.8568,188.09,187.98,7.86422058]
[1730971525886,7.86422058,188.04,187.98,7.86422058]
[1730971526085,21.8568,188.09,187.99,7.86422058]
[1730971526391,7.86422058,188.05,187.98,7.86422058]
[1730971526701,7.86422058,188.05,187.99,5.3194]
[1730971526900,7.86422058,188.05,187.99,13.18362058]
[1730971527116,7.86422058,188.05,187.99,18.6179]
[1730971529105,7.86422058,188.04,187.99,18.6179]
[1730971530806,7.86422058,188.03,187.99,13.2985]
[1730971531306,7.86422058,188.03,187.99,18.6179]
[1730971532898,7.86422058,188.03,187.99,13.2985]
[1730971533299,7.86422058,188.0,187.95,13.301]
[1730971534315,7.86422058,188.0,187.95,18.6215]
[1730971534809,16.5402,188.09,187.96,23.776884]
[1730971534997,7.86422058,188.04,187.98,7.86422058]
[1730971535399,7.86422058,188.04,187.97,7.86422058]
[1730971535709,5.3168,188.08,187.97,7.86422058]
[1730971535903,7.86422058,188.04,187.98,18.6189]
[1730971536213,7.86422058,188.05,187.99,7.86422058]
[1730971537196,7.86422058,188.03,187.99,5.3194]
[1730971538187,7.86422058,188.03,187.98,13.2992]
[1730971538383,7.86422058,188.03,187.98,18.6189]
[1730971540208,5.3168,188.08,187.98,26.48312058]
[1730971540508,7.86422058,188.04,187.98,26.48312058]
[1730971541101,5.3168,188.08,187.98,18.6189]
[1730971541311,7.86422058,188.03,187.98,18.6189]
[1730971542812,7.86422058,188.04,187.98,21.16342058]
[1730971544120,7.86422058,188.03,187.98,13.2992]
[1730971544913,7.86422058,188.03,187.98,18.6189]
[1730971545316,7.86422058,188.0,187.95,20.0]
[1730971545613,7.86422058,188.0,187.94,26.48662058]
[1730971545994,5.3168,188.08,187.95,7.86422058]
[1730971546196,7.86422058,188.01,187.95,7.86422058]
[1730971546392,7.86422058,188.0,187.94,18.6224]
[1730971546611,7.86422058,188.0,187.95,23.776884]
[1730971547005,7.86422058,188.0,187.96,5.3202]
[1730971547318,7.86422058,188.01,187.96,5.3202]
[1730971547511,7.86422058,188.01,187.96,18.6209]
[1730971548990,13.2922,188.08,187.96,18.6209]
[1730971549193,7.86422058,188.01,187.96,18.6209]
[1730971549607,7.86422058,188.02,187.96,26.48512058]
[1730971550108,5.3178,188.05,187.98,7.86422058]
[1730971550299,7.86422058,188.04,187.98,7.86422058]
[1730971551516,7.86422058,188.04,187.99,5.3194]
[1730971552814,7.86422058,188.03,187.98,18.6189]
[1730971553205,7.86422058,188.02,187.98,18.6189]
[1730971553406,7.86422058,188.01,187.98,13.2992]
[1730971554614,7.86422058,188.0,187.94,18.6225]
[1730971554813,7.86422058,188.0,187.94,26.48672058]
[1730971555196,7.86422058,188.01,187.95,7.86422058]
[1730971556316,7.86422058,188.0,187.95,20.0]
[1730971556509,7.86422058,188.01,187.95,27.86422058]
[1730971557621,29.8318,188.09,187.96,26.61061058]
[1730971557800,7.86422058,188.03,187.96,26.61061058]
[1730971561027,7.86422058,188.03,187.98,5.3197]
[1730971562121,7.86422058,188.03,187.98,18.6189]
[1730971563127,5.3168,188.08,187.98,18.6189]
[1730971563513,7.86422058,188.04,187.98,26.48312058]
[1730971565015,7.86422058,188.03,187.98,13.2992]
[1730971565324,7.86422058,188.02,187.98,13.2992]
[1730971565717,7.86422058,188.0,187.98,13.2992]
[1730971566231,7.86422058,188.01,187.98,13.2992]
[1730971566530,5.3168,188.08,188.0,7.86422058]
[1730971566828,7.86422058,188.06,188.0,7.86422058]
[1730971567319,5.3168,188.08,188.01,5.3188]
[1730971567506,7.86422058,188.06,188.01,5.3188]
[1730971568936,7.86422058,188.05,188.01,5.3188]
[1730971569311,7.86422058,188.04,187.99,5.3192]
[1730971569619,7.86422058,188.03,187.99,5.3192]
[1730971570335,7.86422058,188.03,187.98,13.2992]
[1730971571917,7.86422058,188.03,187.98,18.6189]
[1730971572651,5.3176,188.06,187.98,18.6189]
[1730971572813,7.86422058,188.04,187.98,26.48312058]
[1730971573838,7.86422058,188.04,187.99,5.3191]
[1730971574029,7.86422058,188.03,187.99,5.3191]
[1730971575050,7.86422058,188.03,187.98,18.6189]
[1730971576435,7.86422058,188.02,187.98,18.6189]
[1730971576630,7.86422058,188.03,187.98,18.6189]
[1730971582743,7.86422058,188.02,187.98,18.6189]
[1730971582922,7.86422058,188.01,187.98,13.2992]
[1730971583440,7.86422058,188.01,187.95,20.0]
[1730971583645,7.86422058,187.99,187.96,5.3202]
[1730971584029,7.86422058,188.0,187.96,5.3202]
[1730971584348,7.86422058,188.01,187.96,5.3202]
[1730971584648,7.86422058,188.01,187.95,20.0]
[1730971584836,7.86422058,187.99,187.95,25.3205]
[1730971585742,7.86422058,188.0,187.95,25.3205]
[1730971587342,5.3184,188.03,187.95,38.6219]
[1730971587646,7.86422058,188.01,187.95,46.48612058]
[1730971587943,7.86422058,188.04,187.97,7.86422058]
[1730971588846,5.3178,188.05,187.98,21.16342058]